lending/lending_fUSD_20240809
["ID","MTS","AMOUNT","RATE_DAILY","PERIOD"]
[334556640,1723207839690,-269.65,0.00010999,2]
[334556641,1723207839700,-500.0,0.00010999,2]
[334556642,1723207839709,-500.0,0.00010999,2]
[334556643,1723207839719,-500.0,0.00010999,2]
[334556644,1723207839728,-500.0,0.00010999,2]
[334556645,1723207839738,-263.77,0.00010999,2]
[334556646,1723207839748,-500.0,0.00010999,2]
[334556647,1723207839758,-500.0,0.00010999,2]
[334556648,1723207839768,-500.0,0.00010999,2]
[334556649,1723207839778,-500.0,0.00010999,2]
[334556650,1723207839788,-500.0,0.00010999,2]
[334556651,1723207839798,-500.0,0.00010999,2]
[334556652,1723207839808,-500.0,0.00010999,2]
[334556653,1723207839818,-500.0,0.00010999,2]
[334556654,1723207839828,-500.0,0.00010999,2]
[334556655,1723207839838,-347.94,0.00010999,2]
[334556656,1723207839847,-500.0,0.00010999,2]
[334556657,1723207839857,-647.07445341,0.00010999,2]
[334556658,1723207839867,-500.0,0.00010999,2]
[334556659,1723207839877,-500.0,0.00010999,2]
[334556660,1723207839886,-500.0,0.00010999,2]
[334556661,1723207839895,-500.0,0.00010999,2]
[334556662,1723207839906,-500.0,0.00010999,2]
[334556663,1723207839915,-500.0,0.00010999,2]
[334556664,1723207839925,-500.0,0.00010999,2]
[334556665,1723207839935,-500.0,0.00010999,2]
[334556666,1723207839945,-306.20750487,0.00010999,2]
[334556667,1723207839955,-528.82408754,0.00010999,2]
[334556668,1723207839964,-500.0,0.00010999,2]
[334556669,1723207839974,-500.0,0.00010999,2]
[334556670,1723207839983,-500.0,0.00010999,2]
[334556671,1723207839993,-500.0,0.00010999,2]
[334556672,1723207840003,-500.0,0.00010999,2]
[334556673,1723207840012,-500.0,0.00010999,2]
[334556674,1723207840022,-500.0,0.00010999,2]
[334556675,1723207840031,-500.0,0.00010999,2]
[334556676,1723207840041,-500.0,0.00010999,2]
[334556677,1723207840051,-500.0,0.00010999,2]
[334556681,1723207840201,-371.7,0.00010999,2]
[334556682,1723207840212,-500.0,0.00010999,2]
[334556683,1723207840222,-500.0,0.00010999,2]
[334556684,1723207840232,-500.0,0.00010999,2]
[334556685,1723207840241,-500.0,0.00010999,2]
[334556686,1723207840251,-500.0,0.00010999,2]
[334556687,1723207840260,-500.0,0.00010999,2]
[334556688,1723207840270,-500.0,0.00010999,2]
[334556689,1723207840280,-500.0,0.00010999,2]
[334556690,1723207840289,-500.0,0.00010999,2]
[334556691,1723207840299,-501.23,0.00010999,2]
[334556692,1723207840308,-884.8,0.00010999,2]
[334556694,1723207840318,-884.8,0.00010999,2]
[334556696,1723207840327,-884.8,0.00010999,2]
[334556698,1723207840335,-884.8,0.00010999,2]
[334556699,1723207840346,-884.8,0.00010999,2]
[334556700,1723207840355,-884.8,0.00010999,2]
[334556701,1723207840364,-884.8,0.00010999,2]
[334556702,1723207840374,-884.8,0.00010999,2]
[334556703,1723207840384,-884.8,0.00010999,2]
[334556704,1723207840393,-884.8,0.00010999,2]
[334556705,1723207840403,-884.8,0.00010999,2]
[334556706,1723207840412,-884.8,0.00010999,2]
[334556707,1723207840422,-884.8,0.00010999,2]
[334556708,1723207840432,-884.8,0.00010999,2]
[334556709,1723207840442,-884.8,0.00010999,2]
[334556710,1723207840452,-884.8,0.00010999,2]
[334556711,1723207840461,-884.8,0.00010999,2]
[334556712,1723207840471,-884.8,0.00010999,2]
[334556713,1723207840481,-884.8,0.00010999,2]
[334556714,1723207840491,-884.8,0.00010999,2]
[334556715,1723207840501,-884.8,0.00010999,2]
[334556716,1723207840511,-884.8,0.00010999,2]
[334556717,1723207840520,-884.8,0.00010999,2]
[334556718,1723207840530,-884.83,0.00010999,2]
[334556719,1723207840540,-1536.6,0.00010999,2]
[334556720,1723207840549,-1536.6,0.00010999,2]
[334556721,1723207840559,-1536.6,0.00010999,2]
[334556722,1723207840571,-1536.6,0.00010999,2]
[334556723,1723207840582,-1536.6,0.00010999,2]
[334556724,1723207840592,-1536.6,0.00010999,2]
[334556725,1723207840601,-1536.6,0.00010999,2]
[334556726,1723207840611,-1536.6,0.00010999,2]
[334556727,1723207840621,-1536.6,0.00010999,2]
[334556728,1723207840631,-1536.6,0.00010999,2]
[334556729,1723207840640,-1536.6,0.00010999,2]
[334556730,1723207840652,-1536.6,0.00010999,2]
[334556731,1723207840663,-1536.6,0.00010999,2]
[334556732,1723207840672,-1536.6,0.00010999,2]
[334556733,1723207840683,-1536.6,0.00010999,2]
[334556734,1723207840692,-1536.6,0.00010999,2]
[334556735,1723207840702,-1536.6,0.00010999,2]
[334556736,1723207840711,-1536.6,0.00010999,2]
[334556737,1723207840721,-1536.6,0.00010999,2]
[334556738,1723207840731,-1536.6,0.00010999,2]
[334556739,1723207840740,-1536.6,0.00010999,2]
[334556740,1723207840750,-1536.6,0.00010999,2]
[334556741,1723207840759,-1536.6,0.00010999,2]
[334556742,1723207840769,-1536.66,0.00010999,2]
[334556743,1723207840779,-500.0,0.00010999,2]
[334556744,1723207840789,-500.0,0.00010999,2]
[334556745,1723207840799,-500.0,0.00010999,2]
[334556746,1723207840809,-500.0,0.00010999,2]
[334556747,1723207840819,-500.0,0.00010999,2]
[334556748,1723207840829,-500.0,0.00010999,2]
[334556749,1723207840839,-500.0,0.00010999,2]
[334556750,1723207840850,-500.0,0.00010999,2]
[334556751,1723207840860,-500.0,0.00010999,2]
[334556752,1723207840871,-500.0,0.00010999,2]
[334556753,1723207840880,-500.0,0.00010999,2]
[334556754,1723207840890,-500.0,0.00010999,2]
[334556755,1723207840900,-500.0,0.00010999,2]
[334556756,1723207840919,-500.0,0.00010999,2]
[334556757,1723207840928,-500.0,0.00010999,2]
[334556758,1723207840938,-500.0,0.00010999,2]
[334556759,1723207840947,-500.0,0.00010999,2]
[334556760,1723207840956,-582.62,0.00010999,2]
[334556761,1723207840966,-500.0,0.00010999,2]
[334556762,1723207840975,-500.0,0.00010999,2]
[334556763,1723207840985,-500.0,0.00010999,2]
[334556764,1723207840994,-500.0,0.00010999,2]
[334556765,1723207841004,-500.0,0.00010999,2]
[334556766,1723207841013,-500.0,0.00010999,2]
[334556767,1723207841023,-500.0,0.00010999,2]
[334556768,1723207841033,-500.0,0.00010999,2]
[334556769,1723207841043,-500.0,0.00010999,2]
[334556770,1723207841052,-500.0,0.00010999,2]
[334556771,1723207841061,-601.57,0.00010999,2]
[334556772,1723207841070,-500.0,0.00010999,2]
[334556773,1723207841079,-500.0,0.00010999,2]
[334556774,1723207841089,-500.0,0.00010999,2]
[334556775,1723207841098,-500.0,0.00010999,2]
[334556776,1723207841107,-227.35,0.00010999,2]
[334556777,1723207841116,-500.0,0.00010999,2]
[334556778,1723207841125,-500.0,0.00010999,2]
[334556779,1723207841135,-500.0,0.00010999,2]
[334556780,1723207841144,-500.0,0.00010999,2]
[334556781,1723207841153,-500.0,0.00010999,2]
[334556782,1723207841162,-500.0,0.00010999,2]
[334556783,1723207841172,-500.0,0.00010999,2]
[334556784,1723207841181,-500.0,0.00010999,2]
[334556785,1723207841190,-492.39853978,0.00010999,2]
[334556786,1723207841199,-237.65,0.00010999,2]
[334556787,1723207841209,-292.85,0.00010999,2]
[334556788,1723207841218,-500.0,0.00010999,2]
[334556789,1723207841227,-500.0,0.00010999,2]
[334556790,1723207841236,-646.58,0.00010999,2]
[334556791,1723207841246,-500.0,0.00010999,2]
[334556792,1723207841255,-500.0,0.00010999,2]
[334556793,1723207841264,-505.61123302,0.00010999,2]
[334556794,1723207841273,-500.0,0.00010999,2]
[334556795,1723207841283,-251.02520235,0.00010999,2]
[334556796,1723207841292,-568.21767538,0.00010999,2]
[334556797,1723207841302,-355.57127117,0.00010999,2]
[334556800,1723207841313,-500.0,0.00010999,2]
[334556802,1723207841323,-499.99999999,0.00010999,2]
[334556803,1723207841333,-929.0,0.00011,2]
[334556804,1723207841343,-105620.45409702,0.00011,2]
[334556805,1723207841353,-595254.31360751,0.00011,2]
[334556806,1723207841372,-11604.99926296,0.00011,2]
[334556807,1723207841384,-2644.17619719,0.00011,2]
[334556808,1723207841473,-150.0,0.00010996,2]
[334556809,1723207841483,-1667.659828,0.00011,2]
[334556810,1723207841554,-524.12359998,0.00011,2]
[334556811,1723207841571,-1250.298024,0.00011,2]
[334556821,1723207843294,-852.50000011,0.00011,2]
[334556822,1723207843305,-1109.25964547,0.00011,2]
[334556829,1723207844375,-819.08874595,0.00011,2]
[334556830,1723207844387,-325.0,0.00011,2]
[334556831,1723207844398,-329.70014336,0.00011,2]
[334556832,1723207844409,-686.92865758,0.00011,2]
[334556833,1723207844425,-656.23196115,0.00011,2]
[334556834,1723207844436,-10029.3723636,0.00011,2]
[334556835,1723207846352,-356.41,0.00010078,2]
[334556836,1723207846362,-150.0,0.00010996,2]
[334556837,1723207846372,-786.0,0.00011,2]
[334556838,1723207846381,-2581.54636005,0.00011,2]
[334556839,1723207846733,-692.17038355,0.00011,2]
[334556840,1723207846746,-1208.0,0.00011,2]
[334556841,1723207846894,-1563.105,0.00011,2]
[334556918,1723207922258,-1461.8974536,9.684e-05,2]
[334556919,1723207922299,-1055.1380464,9.684e-05,2]
[334556920,1723207959842,329.41,8.219e-05,2]
[334556921,1723208024118,200.0,0.00010121,2]
[334556922,1723208028686,303.87313893,9.962e-05,2]
[334556923,1723208073691,303.87313893,9.962e-05,2]
[334556924,1723208180214,154.5440605,0.00010048,2]
[334556925,1723208180241,45.4559395,0.00010048,2]
[334556926,1723208227790,1050.42686795,0.00010048,2]
[334556927,1723208231620,178.87060237,0.00010048,2]
[334556929,1723208451760,58.58791417,8.219e-05,2]
[334556930,1723208451791,254.34208583,8.219e-05,2]
[334556933,1723208907792,297.28,8.219e-05,2]
[334556960,1723209031807,-250.0,9.947e-05,2]
[334556964,1723209031817,-199.33,9.95e-05,2]
[334556968,1723209031826,-187.27581308,9.954e-05,2]
[334556972,1723209031838,-812.72418692,9.954e-05,2]
[334556976,1723209031847,-300.0,9.999e-05,2]
[334556980,1723209031858,-300.0,9.999e-05,2]
[334556984,1723209031867,-228.65762341,0.0001,2]
[334556988,1723209031876,-4103.3692298,0.0001,2]
[334556994,1723209031895,-619.65174307,0.0001,2]
[334556997,1723209031908,-6683.26958659,0.0001,2]
[334557001,1723209031923,-1299.333284,0.0001,2]
[334557003,1723209031934,-672.3424,0.0001,2]
[334557005,1723209031947,-5865.45045287,0.0001,2]
[334557007,1723209031959,-3064.60664569,0.0001,2]
[334557009,1723209031971,-605.28,0.0001,2]
[334557010,1723209031982,-966.21666469,0.0001,2]
[334557011,1723209031994,-741.8811006,0.0001,2]
[334557012,1723209032015,-3406.03390733,0.0001,2]
[334557013,1723209032026,-1578.52793701,0.0001,2]
[334557014,1723209032035,-270.58748297,0.00010048,2]
[334557015,1723209032044,-162.69079755,0.00010048,2]
[334557016,1723209032054,-299.91075402,0.00010048,2]
[334557017,1723209032063,-210.34920118,0.00010048,2]
[334557018,1723209032075,-840.07766677,0.00010048,2]
[334557019,1723209032084,-413.04823206,0.00010048,2]
[334557020,1723209032093,-181.79082061,0.00010048,2]
[334557021,1723209032103,-170.46315776,0.00010048,2]
[334557022,1723209032112,-150.0,0.00010251,2]
[334557023,1723209032122,-5629.54568864,0.00010252,2]
[334557024,1723209032134,-11.45431136,0.00010252,2]
[334557025,1723209032143,-297.28,0.00010474,2]
[334557026,1723209032153,-150.0,0.00010718,2]
[334557027,1723209032162,-325.6091995,0.00010718,2]
[334557028,1723209032177,-1568.3908005,0.00010718,2]
[334557030,1723209032186,-551.0,0.00010718,2]
[334557032,1723209032195,-3253.97817646,0.00010718,2]
[334557033,1723209032206,-36.02182354,0.00010718,2]
[334557034,1723209032215,-247.0,0.00010718,2]
[334557035,1723209032224,-80.74273643,0.00010718,2]
[334557036,1723209032236,-419.24726357,0.00010718,2]
[334557037,1723209032245,-1192.57762763,0.00010718,2]
[334557039,1723209037630,-94.34437237,0.00010718,2]
[334557040,1723209037639,-824.45957263,0.00010718,2]
[334557041,1723209037651,-4306.54042737,0.00010718,2]
[334557042,1723209037661,-462.16535779,0.00010718,2]
[334557043,1723209037671,-576.87446552,0.00010718,2]
[334557044,1723209037688,-902.63081299,0.00010718,2]
[334557045,1723209037699,-250.485,0.00010718,2]
[334557046,1723209037856,-965.41315995,0.00010718,2]
[334557047,1723209039553,-363.18590131,0.00010718,2]
[334557048,1723209039564,-1213.07672,0.00010718,2]
[334557049,1723209039615,-1105.16858244,0.00010718,2]
[334557050,1723209039631,-1672.0,0.00010718,2]
[334557051,1723209039640,-7263.17203223,0.000108,2]
[334557052,1723209039650,-150.0,0.00010813,2]
[334557053,1723209039659,-1500.0,0.00010839,2]
[334557054,1723209039669,-223.6374,0.00010899,2]
[334557055,1723209039678,-277.74776212,0.00010899,2]
[334557056,1723209039687,-277.74776212,0.00010899,2]
[334557057,1723209039696,-277.74776212,0.00010899,2]
[334557058,1723209039705,-277.74776212,0.00010899,2]
[334557059,1723209039716,-277.74776212,0.00010899,2]
[334557060,1723209039725,-4534.84459588,0.000109,2]
[334557061,1723209039735,-363.8102,0.000109,2]
[334557062,1723209039744,-133183.3445,0.000109,2]
[334557063,1723209039753,-153.15194371,0.000109,2]
[334557064,1723209039763,-449.0828,0.000109,2]
[334557065,1723209039772,-832.62816945,0.000109,2]
[334557066,1723209039781,-832.62816944,0.000109,2]
[334557067,1723209039791,-277.74776212,0.000109,2]
[334557068,1723209039800,-1500.0,0.00010925,2]
[334557069,1723209039809,-250.0,0.00010959,2]
[334557070,1723209039819,-200.0,0.00010973,2]
[334557071,1723209039828,-1500.0,0.00010989,2]
[334557072,1723209039837,-840.85981544,0.0001099,2]
[334557073,1723209039846,-840.85981544,0.0001099,2]
[334557074,1723209039855,-840.85981544,0.0001099,2]
[334557075,1723209039866,-556.80187622,0.00010995,2]
[334557076,1723209039875,-760.7756699,0.00010995,2]
[334557077,1723209039884,-3879.8896877,0.00010995,2]
[334557078,1723209039894,-2110.8137167,0.00010995,2]
[334557079,1723209039903,-500.0,0.00010995,2]
[334557080,1723209039914,-2155.2818013,0.00010995,2]
[334557081,1723209039930,-500.0,0.00010995,2]
[334557082,1723209039940,-9572.2995651,0.00010995,2]
[334557083,1723209039949,-1692.09938557,0.00010995,2]
[334557084,1723209039961,-1593.55023297,0.00010995,2]
[334557085,1723209039974,-382.33351116,0.00010995,2]
[334557086,1723209039983,-500.0,0.00010995,2]
[334557087,1723209039992,-500.0,0.00010995,2]
[334557088,1723209040002,-283.44748515,0.00010995,2]
[334557089,1723209040011,-150.471,0.00010996,2]
[334557090,1723209040021,-150.0,0.00010996,2]
[334557091,1723209040030,-155.411,0.00010996,2]
[334557092,1723209040040,-146.83700369,0.00010996,2]
[334557093,1723209040052,-3.50399631,0.00010996,2]
[334557094,1723209040061,-150.166,0.00010996,2]
[334557095,1723209040071,-150.0,0.00010996,2]
[334557096,1723209040080,-150.0,0.00010996,2]
[334557097,1723209040089,-622.0,0.00010996,2]
[334557098,1723209040098,-65.22159519,0.00010996,2]
[334557099,1723209041702,-1858.77840481,0.00010996,2]
[334557100,1723209041711,-1583.0,0.00010996,2]
[334557101,1723209041721,-1256.0,0.00010996,2]
[334557102,1723209041730,-150.0,0.00010996,2]
[334557103,1723209041740,-1136.0,0.00010996,2]
[334557104,1723209041749,-810.0,0.00010996,2]
[334557105,1723209041758,-555.0,0.00010996,2]
[334557106,1723209041768,-446.0,0.00010996,2]
[334557107,1723209041778,-572.15,0.00010996,2]
[334557108,1723209041787,-166.71147446,0.00010997,2]
[334557109,1723209041796,-561.58,0.00010998,2]
[334557110,1723209041805,-200.42850144,0.00010999,2]
[334557111,1723209041815,-500.0,0.00010999,2]
[334557112,1723209041824,-150.01,0.00010999,2]
[334557113,1723209041833,-500.0,0.00010999,2]
[334557114,1723209041844,-333.33,0.00010999,2]
[334557115,1723209041853,-500.0,0.00010999,2]
[334557116,1723209041865,-420.0,0.00010999,2]
[334557117,1723209041874,-420.0,0.00010999,2]
[334557118,1723209041883,-229.08287298,0.00010999,2]
[334557119,1723209041892,-797.0,0.00011,2]
[334557120,1723209041901,-52810.22704851,0.00011,2]
[334557121,1723209041910,-56877.52067219,0.00011,2]
[334557122,1723209041927,-5169.12813013,0.00011,2]
[334557123,1723209041942,-865.15862038,0.00011,2]
[334557141,1723209043277,-1075.0,0.00010968,2]
[334557142,1723209043287,-4262.16327186,0.00011,2]
[334557143,1723209043299,-669.81003093,0.00011,2]
[334557144,1723209043310,-7950.47613091,0.00011,2]
[334557145,1723209043327,-6146.62480964,0.00011,2]
[334557146,1723209043338,-122209.74019492,0.00011,2]
[334557147,1723209043349,-646656.74581744,0.00011,2]
[334557148,1723209045640,-334.21541598,0.000109,2]
[334557149,1723209045650,-1955.7001839,0.00011,2]
[334557150,1723209045662,-792.73224283,0.00011,2]
[334557151,1723209045702,-1470.51803953,0.00011,2]
[334557152,1723209045713,-2985.11727615,0.00011,2]
[334557153,1723209045877,-1012.5,0.00011,2]
[334557154,1723209045889,-24518.91999933,0.00011,2]
[334557164,1723209197422,500.0,0.00024932,120]
[334557166,1723209370536,295.48,8.219e-05,2]
[334557168,1723209796872,500.0,0.00024932,120]
[334557169,1723209859024,314.72,8.219e-05,2]
[334557170,1723210187350,-250.0,9.882e-05,2]
[334557171,1723210187379,-34.76934795,9.896e-05,2]
[334557184,1723210232835,-165.26065205,9.896e-05,2]
[334557185,1723210232845,-1000.0,9.905e-05,2]
[334557186,1723210232855,-902.66,9.912e-05,2]
[334557187,1723210232873,-200.53,9.959e-05,2]
[334557188,1723210232883,-1257.14886156,9.962e-05,2]
[334557189,1723210232892,-300.0,9.999e-05,2]
[334557190,1723210232902,-449.45808534,0.0001,2]
[334557191,1723210232912,-162.69079755,0.0001,2]
[334557192,1723210232921,-170.46315776,0.0001,2]
[334557193,1723210232931,-1702.63537887,0.0001,2]
[334557194,1723210232940,-314.72,0.0001047,2]
[334557195,1723210232950,-150.0,0.00010728,2]
[334557196,1723210232960,-856.85,0.0001073,2]
[334557197,1723210232970,-1500.0,0.00010731,2]
[334557198,1723210232979,-418.35,0.00010731,2]
[334557199,1723210232988,-499.99,0.00010731,2]
[334557200,1723210232998,-1427.02,0.00010731,2]
[334557201,1723210233007,-150.0,0.00010755,2]
[334557202,1723210233017,-150.0,0.00010765,2]
[334557203,1723210233027,-150.0,0.00010799,2]
[334557204,1723210233037,-57069.4198,0.000108,2]
[334557205,1723210233047,-1500.0,0.00010836,2]
[334557206,1723210233056,-150.0,0.00010841,2]
[334557207,1723210233066,-150.0,0.00010854,2]
[334557208,1723210233075,-158.71300698,0.00010899,2]
[334557209,1723210233085,-158.71300693,0.00010899,2]
[334557210,1723210233095,-158.71300693,0.00010899,2]
[334557211,1723210233104,-158.71300693,0.00010899,2]
[334557212,1723210233119,-158.71300693,0.00010899,2]
[334557213,1723210233129,-346.52630541,0.00010899,2]
[334557214,1723210233139,-158.71300693,0.00010899,2]
[334557215,1723210233150,-2971.4468,0.000109,2]
[334557216,1723210233159,-499.36766,0.000109,2]
[334557217,1723210233169,-803.4344,0.000109,2]
[334557218,1723210233179,-364.3739,0.000109,2]
[334557219,1723210233189,-168.55731249,0.000109,2]
[334557220,1723210233199,-5318.4156,0.000109,2]
[334557221,1723210233209,-153.23162735,0.000109,2]
[334557222,1723210233219,-158.71300693,0.000109,2]
[334557223,1723210233229,-167.24387357,0.000109,2]
[334557224,1723210233238,-260.59385824,0.000109,2]
[334557225,1723210233248,-462.61206803,0.000109,2]
[334557226,1723210233257,-150.0,0.00010919,2]
[334557227,1723210233267,-250.0,0.00010959,2]
[334557228,1723210233277,-2000.0,0.00010959,2]
[334557229,1723210233288,-150.0,0.00010984,2]
[334557230,1723210233301,-500.0,0.00010989,2]
[334557231,1723210233311,-500.0,0.00010989,2]
[334557232,1723210233321,-573.34,0.00010989,2]
[334557233,1723210233331,-260377.4059932,0.0001099,2]
[334557234,1723210233340,-420.42990772,0.0001099,2]
[334557235,1723210233351,-420.42990772,0.0001099,2]
[334557236,1723210233365,-420.42990772,0.0001099,2]
[334557237,1723210233376,-206.17458569,0.00010995,2]
[334557238,1723210233386,-500.0,0.00010995,2]
[334557239,1723210233395,-150.0,0.00010996,2]
[334557240,1723210233404,-446.0,0.00010996,2]
[334557241,1723210233414,-810.0,0.00010996,2]
[334557242,1723210233424,-555.0,0.00010996,2]
[334557243,1723210233434,-1136.0,0.00010996,2]
[334557244,1723210233443,-150.0,0.00010996,2]
[334557245,1723210233453,-551.0,0.00010996,2]
[334557246,1723210233463,-1894.0,0.00010996,2]
[334557247,1723210233473,-247.0,0.00010996,2]
[334557248,1723210233484,-3290.0,0.00010996,2]
[334557249,1723210233493,-1256.0,0.00010996,2]
[334557250,1723210233503,-5839.0,0.00010996,2]
[334557251,1723210233513,-5131.0,0.00010996,2]
[334557252,1723210233523,-1924.0,0.00010996,2]
[334557253,1723210233532,-1204.0,0.00010996,2]
[334557254,1723210233541,-1667.0,0.00010996,2]
[334557255,1723210233551,-833.55737235,0.00010997,2]
[334557256,1723210233560,-9334.2160823,0.00010998,2]
[334557257,1723210233570,-1845.2476955,0.00010998,2]
[334557258,1723210233580,-4703.30245975,0.00010998,2]
[334557259,1723210233593,-788.28895845,0.00010998,2]
[334557260,1723210233603,-958.26166681,0.00010998,2]
[334557261,1723210233619,-3504.07490294,0.00010998,2]
[334557262,1723210233649,-603.710008,0.00010998,2]
[334557264,1723210237796,-468.87,0.00010996,2]
[334557265,1723210237976,-153.13,0.00010996,2]
[334557266,1723210237986,-849.42548938,0.00010998,2]
[334557267,1723210238208,-2064.52335986,0.00010998,2]
[334557434,1723210239870,-300.2714428,0.00010996,2]
[334557436,1723210239881,-1185.48489504,0.00010996,2]
[334557454,1723210242079,-200.0,0.00010416,2]
[334557455,1723210242089,-97.24366216,0.00010996,2]
[334557456,1723210242098,-907.97312184,0.00010996,2]
[334557470,1723210242752,-167.02687816,0.00010996,2]
[334557471,1723210242762,-2110.94078481,0.00010998,2]
[334557472,1723210242772,-2231.7666053,0.00010998,2]
[334557473,1723210242781,-188.75297818,0.00010999,2]
[334557474,1723210242790,-150.01,0.00010999,2]
[334557475,1723210242799,-500.0,0.00010999,2]
[334557476,1723210242809,-500.0,0.00010999,2]
[334557477,1723210242818,-199.17395355,0.00010999,2]
[334557493,1723210243767,-300.82604645,0.00010999,2]
[334557494,1723210243775,-500.0,0.00010999,2]
[334557495,1723210243785,-69.99255256,0.00010999,2]
[334557497,1723210245932,-287.049995,0.000109,2]
[334557503,1723210335502,283.24,8.344e-05,2]
[334557504,1723210350325,332.75334527,9.796e-05,2]
[334557505,1723210350358,308.48365473,9.796e-05,2]
[334557508,1723210396384,500.0,0.00024932,120]
[334557510,1723210866175,269.07,8.219e-05,2]
[334557514,1723211295277,-1095.40015767,9.962e-05,2]
[334557517,1723211341722,255.61,8.219e-05,2]
[334557523,1723211431845,-160.42,0.000101,2]
[334557524,1723211431855,-1000.0,0.00010127,2]
[334557525,1723211431865,-159.46,0.00010158,2]
[334557526,1723211431874,-2028.76538502,0.00010247,2]
[334557527,1723211431885,-600.27,0.00010247,2]
[334557528,1723211431900,-4407.91031498,0.00010247,2]
[334557529,1723211431909,-200.28,0.00010332,2]
[334557530,1723211431921,-300.0,0.00010446,2]
[334557531,1723211431934,-300.0,0.00010446,2]
[334557532,1723211431943,-502.80968502,0.00010447,2]
[334557533,1723211431954,-1284.35585131,0.00010447,2]
[334557534,1723211431965,-876.72999162,0.00010447,2]
[334557535,1723211431976,-2194.55656055,0.00010447,2]
[334557536,1723211431987,-372.39606899,0.00010447,2]
[334557537,1723211431999,-2500.0,0.00010447,2]
[334557538,1723211432013,-594.67731106,0.00010447,2]
[334557539,1723211432024,-251.35461498,0.00010447,2]
[334557540,1723211432036,-1423.11991647,0.00010447,2]
[334557541,1723211432045,-150.0,0.00010466,2]
[334557542,1723211432056,-255.61,0.00010481,2]
[334557543,1723211432065,-150.0,0.00010889,2]
[334557544,1723211432074,-437.27008353,0.0001089,2]
[334557545,1723211432086,-1574.93921647,0.0001089,2]
[334557546,1723211432095,-3119.01435888,0.0001089,2]
[334557547,1723211432106,-2000.0,0.0001089,2]
[334557580,1723211437972,-10000.0,0.00010447,2]
[334557582,1723211437981,-2385.66119734,0.0001089,2]
[334557583,1723211437994,-7520.63475626,0.0001089,2]
[334557584,1723211438008,-4985.0801,0.0001089,2]
[334557585,1723211438054,-1279.40008752,0.0001089,2]
[334557586,1723211438064,-1099.7571,0.0001089,2]
[334557587,1723211438074,-343.24,0.0001089,2]
[334557588,1723211438084,-895.3017402,0.000109,2]
[334557589,1723211438093,-194.68547152,0.000109,2]
[334557590,1723211438104,-2865.86972551,0.000109,2]
[334557591,1723211438113,-810.65,0.00010959,2]
[334557592,1723211438123,-500.0,0.00010989,2]
[334557593,1723211438132,-1256.0,0.00010996,2]
[334557594,1723211438142,-1583.0,0.00010996,2]
[334557595,1723211438151,-1924.0,0.00010996,2]
[334557596,1723211438161,-622.0,0.00010996,2]
[334557597,1723211438173,-1136.0,0.00010996,2]
[334557598,1723211438183,-810.0,0.00010996,2]
[334557599,1723211438192,-150.0,0.00010996,2]
[334557600,1723211438202,-555.0,0.00010996,2]
[334557601,1723211438212,-446.0,0.00010996,2]
[334557602,1723211438221,-551.0,0.00010996,2]
[334557603,1723211438231,-1894.0,0.00010996,2]
[334557604,1723211438240,-247.0,0.00010996,2]
[334557605,1723211438249,-3290.0,0.00010996,2]
[334557606,1723211438259,-4534.586,0.00010996,2]
[334557607,1723211438269,-5251.873,0.00010996,2]
[334557608,1723211438279,-1075.0,0.00010996,2]
[334557609,1723211438289,-150.0,0.00010996,2]
[334557610,1723211438298,-8580.7869538,0.00010998,2]
[334557611,1723211438310,-297.48711185,0.00010998,2]